bitfinex/quotes_BTCUSD_20241111
["timestamp","ask_amount","ask_price","bid_price","bid_amount"]
[1731361301010,0.11422305,87902.0,87901.0,0.05815491]
[1731361302312,0.11357674,87902.0,87901.0,0.05815491]
[1731361303260,0.11357674,87902.0,87901.0,0.0017046]
[1731361303487,0.13292441,87902.0,87901.0,0.0017046]
[1731361305026,0.13292441,87902.0,87900.0,0.05601665]
[1731361306169,0.13292441,87902.0,87892.0,0.05646351]
[1731361306381,0.12757468,87902.0,87894.0,0.0562879]
[1731361307158,0.12757468,87902.0,87896.0,0.15646854]
[1731361307353,0.01275747,87901.0,87897.0,0.0562189]
[1731361307619,0.11422305,87900.0,87897.0,0.0562189]
[1731361308593,0.07267095,87900.0,87888.0,0.05684525]
[1731361308942,0.07267095,87900.0,87892.0,0.15653455]
[1731361310145,0.07267095,87900.0,87892.0,0.05653455]
[1731361310368,0.00854284,87899.0,87892.0,0.05653455]
[1731361310571,0.11422305,87898.0,87892.0,0.05653455]
[1731361311366,0.0799,87909.0,87898.0,0.1568918]
[1731361311577,0.11422305,87908.0,87906.0,0.1]
[1731361313071,0.11422305,87908.0,87904.0,0.05632239]
[1731361313277,0.01949754,87907.0,87902.0,0.05605705]
[1731361313478,0.11422305,87906.0,87902.0,0.05605705]
[1731361314614,0.11422305,87906.0,87900.0,0.05657806]
[1731361315236,0.11422305,87906.0,87902.0,0.15605705]
[1731361315439,0.02144729,87905.0,87902.0,0.15605705]
[1731361315613,0.11422305,87904.0,87902.0,0.15605705]
[1731361316245,0.11422305,87904.0,87901.0,0.05675388]
[1731361317129,0.11422305,87904.0,87900.0,0.1]
[1731361317332,0.11422305,87904.0,87897.0,0.0562189]
[1731361317535,0.11422305,87904.0,87896.0,0.0017048]
[1731361317536,0.01949754,87903.0,87896.0,0.0017048]
[1731361317759,0.0799,87909.0,87897.0,0.05654218]
[1731361317760,0.11422305,87902.0,87897.0,0.05654218]
[1731361317900,0.11422305,87902.0,87900.0,0.1562524]
[1731361320687,0.1437476,87900.0,87899.0,0.18518114]
[1731361320889,0.0008523,87910.0,87901.0,0.0291347]
[1731361321250,0.11422305,87909.0,87906.0,0.25774188]
[1731361321466,0.17070187,87927.0,87906.0,0.25774188]
[1731361321634,0.17070187,87926.0,87920.0,0.12887094]
[1731361321811,0.17070187,87926.0,87906.0,0.12887094]
[1731361321812,0.17070187,87926.0,87925.0,0.12887094]
[1731361322021,0.11422305,87934.0,87925.0,0.12387094]
[1731361322224,0.11422305,87934.0,87933.0,0.12887094]
[1731361322591,0.11422305,87934.0,87933.0,0.1]
[1731361322812,0.05132517,87945.0,87934.0,0.1]
[1731361323016,0.0829,87970.0,87942.0,0.1]
[1731361323825,0.0008,87951.0,87946.0,0.12887094]
[1731361324048,0.17240827,87971.0,87948.0,0.023]
[1731361324245,0.17240827,87971.0,87955.0,0.22887094]
[1731361324479,0.17240827,87971.0,87955.0,0.35774188]
[1731361324678,0.17240827,87971.0,87955.0,0.22887094]
[1731361324909,0.00470428,87973.0,87966.0,0.05624928]
[1731361325144,0.0008528,87976.0,87975.0,0.35774188]
[1731361325564,0.0008528,87976.0,87975.0,0.1]
[1731361325693,0.0008528,87976.0,87975.0,0.35774188]
[1731361325891,0.0008527,87990.0,87975.0,0.55616177]
[1731361326096,0.0008527,87990.0,87987.0,0.22887094]
[1731361326328,7.10049153,88000.0,87997.0,0.023]
[1731361326492,7.10049153,88000.0,87998.0,0.1]
[1731361326493,6.93849153,88000.0,87998.0,0.1]
[1731361326702,6.93849153,88000.0,87999.0,0.35774188]
[1731361326703,6.61449153,88000.0,87999.0,0.35774188]
[1731361326913,3.86149153,88000.0,87999.0,0.29458445]
[1731361327332,2.29023351,88000.0,87999.0,0.29458445]
[1731361327914,2.12823351,88000.0,87999.0,0.1]
[1731361328136,2.24245656,88000.0,87984.0,0.05670962]
[1731361328382,0.11422305,87999.0,87986.0,0.17070187]
[1731361328812,0.11422305,87999.0,87987.0,0.05678123]
[1731361328979,0.1142211,87998.0,87987.0,0.05678123]
[1731361329197,0.11422305,87997.0,87987.0,0.05678123]
[1731361329560,0.11422305,87993.0,87977.0,0.1]
[1731361329778,0.11422305,87989.0,87966.0,0.19458445]
[1731361329987,0.11422305,87989.0,87969.0,0.05672371]
[1731361330259,0.11422305,87977.0,87967.0,0.17070187]
[1731361330486,0.0475,87983.0,87971.0,0.17070187]
[1731361330698,0.1006,87982.0,87965.0,0.17070187]
[1731361330910,0.17070187,87969.0,87945.0,0.04140374]
[1731361331082,0.023,87977.0,87964.0,0.17070187]
[1731361331315,0.023,87974.0,87945.0,0.04140374]
[1731361331558,0.023,87974.0,87958.0,0.17070187]
[1731361331777,0.023,87972.0,87946.0,0.05673419]
[1731361331992,0.11422305,87957.0,87955.0,0.17070187]
[1731361332219,0.11422305,87957.0,87946.0,0.05673419]
[1731361332663,0.11422305,87957.0,87947.0,0.17070187]
[1731361332874,0.11422305,87957.0,87948.0,0.05607442]
[1731361333079,0.19458445,87998.0,87947.0,0.17070187]
[1731361333080,0.17070187,87967.0,87957.0,0.1]
[1731361333251,0.17070187,87977.0,87957.0,0.1]
[1731361333252,0.17070187,87977.0,87967.0,0.05680226]
[1731361333482,0.17070187,87977.0,87967.0,0.15680226]
[1731361333611,0.17070187,87990.0,87967.0,0.15680226]
[1731361333812,0.17070187,87981.0,87967.0,0.15680226]
[1731361334069,0.17070187,87990.0,87969.0,0.1]
[1731361334070,0.11422305,87980.0,87969.0,0.1]
[1731361334235,0.1142211,87997.0,87979.0,0.1]
[1731361334427,0.17070187,87990.0,87987.0,0.19458445]
[1731361334747,0.17070187,87998.0,87988.0,0.1]
[1731361334930,0.22844415,87997.0,87988.0,0.1]
[1731361335568,0.22844415,87997.0,87970.0,0.05605057]
[1731361335780,0.22844415,87997.0,87985.0,0.1]
[1731361337029,0.22844415,87997.0,87977.0,0.05626735]
[1731361337303,0.22844415,87997.0,87983.0,0.1]
[1731361337524,0.22844415,87997.0,87968.0,0.17070187]
[1731361337525,0.11422305,87984.0,87966.0,0.05624928]
[1731361337779,0.1142211,87996.0,87983.0,0.17070187]
[1731361337957,0.1142211,87996.0,87975.0,0.05619684]
[1731361337958,0.17070187,87994.0,87975.0,0.05619684]
[1731361338163,0.1142211,87996.0,87975.0,0.05619684]
[1731361338372,0.1142211,87995.0,87975.0,0.05619684]
[1731361338580,0.11422305,87994.0,87971.0,0.05699779]
[1731361338784,0.11422305,87994.0,87985.0,0.17070187]
[1731361338928,0.11422305,87994.0,87971.0,0.19458445]
[1731361338929,0.11422305,87994.0,87972.0,0.05600658]
[1731361339129,0.11422305,87994.0,87975.0,0.05619684]
[1731361339341,0.02844415,87994.0,87985.0,0.05605553]
[1731361339548,0.24208445,88024.0,87974.0,0.17070187]
[1731361339549,0.0475,88024.0,87982.0,0.05658012]
[1731361339834,0.28492492,87999.0,87983.0,0.17070187]
[1731361340054,0.0475,88024.0,87984.0,0.05670962]
[1731361340277,0.0475,88024.0,87984.0,0.15670962]
[1731361340502,0.0475,88024.0,87993.0,0.1]
[1731361340718,0.17070187,88025.0,87999.0,0.1]
[1731361340719,0.0008532,88020.0,87999.0,0.1]
[1731361341552,0.005,88005.0,87984.0,0.05683027]
[1731361341776,0.005,88002.0,87993.0,0.17070187]
[1731361342002,0.005,88002.0,87990.0,0.05601628]
[1731361342003,2.12323351,88000.0,87989.0,0.05602272]
[1731361342199,0.1142211,87999.0,87989.0,0.05602272]
[1731361343093,0.1142211,87999.0,87984.0,0.05683027]
[1731361343301,3.80709268,88000.0,87984.0,0.05683027]
[1731361343528,3.80709268,88000.0,87984.0,0.15683027]
[1731361343948,0.005,87997.0,87984.0,0.15683027]
[1731361344081,0.11422305,87996.0,87984.0,0.05683027]
[1731361344280,0.11422305,87996.0,87979.0,0.19458445]
[1731361344281,0.11422305,87996.0,87987.0,0.05616327]
[1731361344525,0.18212194,87996.0,87987.0,0.05616327]
[1731361345142,0.005,87993.0,87986.0,0.1]
[1731361345418,0.11922305,87992.0,87976.0,0.05630045]
[1731361345595,0.005,87990.0,87975.0,0.1]
[1731361345815,0.005,87983.0,87964.0,0.05699931]
[1731361346015,0.005,87967.0,87964.0,0.17070187]
[1731361346229,0.005,87965.0,87964.0,0.17070187]
[1731361346420,0.005,87965.0,87941.0,0.19458445]
[1731361346421,0.005,87960.0,87941.0,0.19458445]
[1731361346634,0.11422305,87959.0,87940.0,0.0568489]
[1731361346839,0.11422305,87959.0,87932.0,0.005]
[1731361347034,0.00703331,87958.0,87944.0,0.05616351]
[1731361347418,0.11422305,87957.0,87944.0,0.05616351]
[1731361347807,0.11422305,87957.0,87939.0,0.19458445]
[1731361347934,0.11422305,87957.0,87932.0,0.06132795]
[1731361347935,0.11422305,87957.0,87953.0,0.1]
[1731361348364,0.11422305,87957.0,87953.0,0.15672997]
[1731361348571,0.11422305,87957.0,87954.0,0.0569261]
[1731361349029,0.11422305,87957.0,87953.0,0.1]
[1731361349707,0.005,87956.0,87935.0,0.05665647]
[1731361349931,0.11422305,87955.0,87952.0,0.17070187]
[1731361350139,0.01192231,87954.0,87951.0,0.19458445]
[1731361350344,0.11422305,87953.0,87952.0,0.05671727]
[1731361350531,0.11422305,87953.0,87951.0,0.19458445]
[1731361350703,0.11422305,87953.0,87952.0,0.05671727]
[1731361350913,0.005,87959.0,87952.0,0.05671727]
[1731361351124,0.005,87960.0,87952.0,0.15671727]
[1731361351327,0.11422305,87959.0,87952.0,0.1]
[1731361351524,0.01142231,87958.0,87954.0,0.1569261]
[1731361351732,0.11422305,87957.0,87954.0,0.1569261]
[1731361351928,0.11422305,87957.0,87955.0,0.1]
[1731361352274,0.11422305,87957.0,87956.0,0.1]
[1731361352903,0.17070187,87978.0,87956.0,0.1]
[1731361353120,0.16876115,87977.0,87971.0,0.19458445]
[1731361353291,0.16876115,87977.0,87972.0,0.1]
[1731361354245,0.16876115,87977.0,87958.0,0.05635098]
[1731361354486,0.16876115,87977.0,87968.0,0.17070187]
[1731361354688,0.16876115,87977.0,87962.0,0.05627935]
[1731361354889,0.03687612,87976.0,87964.0,0.1]
[1731361355135,0.11422305,87975.0,87964.0,0.1]
[1731361355977,0.11422305,87975.0,87958.0,0.15635098]
[1731361356295,0.11422305,87975.0,87962.0,0.17070187]
[1731361356500,0.11422305,87975.0,87963.0,0.1]
[1731361356784,0.0521801,87974.0,87963.0,0.1]
[1731361356972,0.11422305,87965.0,87963.0,0.08928048]
[1731361357175,0.11422305,87965.0,87963.0,0.06233001]
[1731361357720,0.11422305,87965.0,87953.0,0.17070187]
[1731361358480,0.11422305,87965.0,87950.0,0.0569826]
[1731361358687,0.01142231,87964.0,87950.0,0.0569826]
[1731361358905,0.11422305,87963.0,87957.0,0.0017036]
[1731361360473,0.11422305,87963.0,87959.0,0.19458445]
[1731361360685,0.11422305,87963.0,87960.0,0.1]
[1731361361520,0.11422305,87963.0,87957.0,0.0017036]
[1731361361729,0.01142231,87962.0,87957.0,0.0017036]
[1731361361933,0.11422305,87961.0,87957.0,0.0017036]
[1731361364964,0.10757436,87961.0,87957.0,0.0017036]
[1731361365109,0.10416474,87961.0,87957.0,0.0017036]
[1731361365957,0.09967918,87961.0,87957.0,0.0017036]
[1731361366124,0.1096471,87961.0,87957.0,0.0017036]
[1731361366530,0.09967918,87961.0,87957.0,0.0017036]
[1731361367384,0.09967918,87961.0,87929.0,0.005]
[1731361367385,0.11422305,87958.0,87917.0,0.25633888]
[1731361367597,0.11422305,87947.0,87946.0,0.17070187]
[1731361367803,0.1800556,87947.0,87927.0,0.05685038]
[1731361367954,0.11422305,87940.0,87925.0,0.22848523]
[1731361368198,0.0817,87939.0,87935.0,0.17070187]
[1731361368402,0.11422305,87938.0,87925.0,0.42306968]
[1731361368599,0.11422305,87934.0,87925.0,0.0017044]
[1731361369011,0.11422305,87927.0,87925.0,0.0017044]
[1731361369287,0.01142231,87926.0,87925.0,0.0017044]
[1731361369457,0.12564536,87926.0,87925.0,0.0017044]
[1731361370235,0.26400565,87926.0,87925.0,0.0017044]
[1731361371120,0.023,87925.0,87917.0,0.17070187]
[1731361371363,0.06711373,87936.0,87907.0,0.17070187]
[1731361371364,0.03991443,87937.0,87936.0,0.005]
[1731361371567,0.09151897,87952.0,87951.0,0.005]
[1731361371735,0.06749807,87963.0,87951.0,0.3891689]
[1731361371957,0.19710082,87980.0,87955.0,0.19458445]
[1731361372180,0.0008518,87961.0,87955.0,0.19458445]
[1731361372348,0.18549836,87979.0,87937.0,0.10524626]
[1731361372349,0.11422305,87960.0,87956.0,0.17070187]
[1731361372560,0.19710082,87980.0,87947.0,0.19458445]
[1731361372561,0.11422305,87959.0,87957.0,0.123]
[1731361372798,0.11422305,87959.0,87949.0,0.023]
[1731361373225,0.11422305,87959.0,87955.0,0.19458445]
[1731361373424,0.11422305,87959.0,87958.0,0.123]
[1731361373833,0.10787417,87959.0,87958.0,0.123]
[1731361374097,0.08801618,87959.0,87958.0,0.123]
[1731361374508,0.0968178,87959.0,87957.0,0.023]
[1731361374708,0.08966543,87959.0,87957.0,0.023]
[1731361375136,0.11422305,87958.0,87946.0,0.17070187]
[1731361375290,0.11422305,87958.0,87947.0,0.1]
[1731361375676,0.00721286,87957.0,87947.0,0.1]
[1731361375865,0.00721286,87957.0,87937.0,0.05644626]
[1731361375866,0.11422305,87949.0,87937.0,0.05644626]
[1731361376105,0.11422305,87949.0,87943.0,0.17070187]
[1731361376310,0.00721286,87957.0,87935.0,0.0017036]
[1731361376311,0.11422305,87944.0,87935.0,0.0017036]
[1731361376525,0.11422305,87943.0,87935.0,0.0017036]
[1731361376919,0.11422305,87943.0,87935.0,0.05836007]
[1731361378388,0.11422305,87943.0,87935.0,0.05665647]
[1731361379064,0.11422305,87943.0,87937.0,0.1]
[1731361379248,0.01142231,87942.0,87937.0,0.15614064]
[1731361379481,0.11422305,87941.0,87937.0,0.15614064]
[1731361379895,0.11422305,87941.0,87937.0,0.1]
[1731361380079,0.11422305,87940.0,87926.0,0.05688433]
[1731361380230,0.11422305,87940.0,87933.0,0.17070187]
[1731361380231,0.01256454,87939.0,87933.0,0.17070187]
[1731361380429,0.11422305,87938.0,87927.0,0.05604565]
[1731361380659,0.11422305,87938.0,87925.0,0.1]
[1731361380866,0.11422305,87938.0,87926.0,0.05688433]
[1731361382224,0.11004242,87938.0,87926.0,0.05688433]
[1731361382463,0.10652458,87938.0,87937.0,0.31758445]
[1731361382611,0.10305772,87938.0,87937.0,0.123]
[1731361382810,0.10305772,87938.0,87937.0,0.0995]
[1731361383481,0.17251811,87938.0,87918.0,0.023]
[1731361383694,0.11422305,87934.0,87928.0,0.17070187]
[1731361383845,0.11422305,87934.0,87917.0,0.05651155]
[1731361384047,0.11422305,87934.0,87926.0,0.05688433]
[1731361384350,0.11422305,87934.0,87917.0,0.05651155]
[1731361385359,0.11422305,87934.0,87909.0,0.19458445]
[1731361385360,0.11422305,87930.0,87910.0,0.1]
[1731361385600,0.0776,87938.0,87900.0,0.0824602]
[1731361385601,0.11422305,87922.0,87916.0,0.17070187]
[1731361385810,0.11422305,87917.0,87900.0,0.0255]
[1731361386000,0.11422305,87917.0,87902.0,0.05687747]
[1731361386210,0.11422305,87916.0,87904.0,0.05630572]
[1731361386387,0.12564536,87915.0,87909.0,0.05662552]
[1731361387214,0.12564536,87915.0,87901.0,0.05647172]
[1731361387364,0.12564536,87915.0,87900.0,0.0255]
[1731361387365,0.12564536,87915.0,87904.0,0.15630572]
[1731361387566,0.11422305,87914.0,87900.0,0.0824602]
[1731361387906,0.11422305,87914.0,87902.0,0.1]
[1731361388101,0.10125701,87914.0,87903.0,0.05671207]
[1731361388513,0.01142231,87915.0,87902.0,0.1]
[1731361388514,0.11422305,87911.0,87902.0,0.1]
[1731361388712,0.11422305,87911.0,87900.0,0.0255]
[1731361389301,0.11422305,87911.0,87901.0,0.17070187]
[1731361390022,0.11422305,87911.0,87902.0,0.1]
[1731361390228,0.11422305,87908.0,87900.0,0.0255]
[1731361390431,0.11422305,87905.0,87900.0,0.0255]
[1731361390684,0.11422305,87901.0,87900.0,0.01434264]
[1731361390920,0.18218929,87901.0,87896.0,0.0017048]
[1731361391068,0.11422305,87899.0,87896.0,0.0017048]
[1731361391267,0.01142231,87898.0,87896.0,0.0017048]
[1731361391471,0.11422305,87897.0,87896.0,0.0017048]
[1731361391674,0.18262792,87897.0,87896.0,0.0017048]
[1731361391836,0.11422305,87897.0,87896.0,0.0017048]
[1731361392876,0.11010183,87897.0,87896.0,0.0017048]
[1731361393096,0.01256454,87910.0,87897.0,0.023]
[1731361393291,0.01142231,87915.0,87896.0,0.0017048]
[1731361393292,0.11422305,87909.0,87904.0,0.123]
[1731361393525,0.01256454,87908.0,87904.0,0.1]
[1731361393748,0.11422305,87907.0,87904.0,0.1]
[1731361393908,0.11422305,87907.0,87897.0,0.023]
[1731361395097,0.11422305,87907.0,87897.0,0.07963595]
[1731361395573,0.0777,87936.0,87904.0,0.023]
[1731361395786,0.17070187,87926.0,87912.0,0.19458445]
[1731361395994,0.0777,87936.0,87912.0,0.19458445]
[1731361395995,0.14271554,87925.0,87913.0,0.1]
[1731361396207,0.11422305,87925.0,87913.0,0.1]
[1731361396856,0.11422305,87925.0,87904.0,0.128]
[1731361397066,0.11422305,87921.0,87904.0,0.1]
[1731361397278,0.11422305,87919.0,87904.0,0.1]
[1731361397488,0.11322305,87919.0,87913.0,0.1]
[1731361398118,0.11422305,87914.0,87904.0,0.27070187]
[1731361398321,0.11422305,87911.0,87906.0,0.1]
[1731361399586,0.11422305,87911.0,87897.0,0.05834275]
[1731361400129,0.11422305,87911.0,87904.0,0.1]
[1731361401106,0.11422305,87911.0,87897.0,0.15834275]
[1731361402696,0.11422305,87911.0,87897.0,0.05834275]
[1731361402906,0.01256454,87910.0,87897.0,0.05834275]
[1731361403094,0.11422305,87909.0,87899.0,0.1]
[1731361403458,0.17070187,87926.0,87899.0,0.1]
[1731361403459,0.11422305,87907.0,87899.0,0.1]
[1731361403778,0.11422305,87900.0,87897.0,0.0017068]
[1731361403933,0.11422305,87899.0,87897.0,0.0017068]
[1731361404135,0.12564536,87898.0,87897.0,0.0017068]
[1731361404339,0.19348638,87898.0,87897.0,0.0017068]
[1731361408937,0.11422305,87898.0,87897.0,0.0017068]
[1731361409141,0.10861375,87898.0,87897.0,0.0017068]
[1731361411517,0.10861375,87898.0,87897.0,0.1017068]
[1731361411762,0.10861375,87898.0,87897.0,0.0017068]
[1731361413750,0.17638003,87898.0,87897.0,0.0017068]
[1731361413953,0.19401803,87898.0,87897.0,0.0017068]
[1731361414333,0.27491803,87898.0,87897.0,0.0017068]
[1731361414542,0.32411803,87898.0,87897.0,0.0017068]
[1731361415506,0.17638003,87898.0,87897.0,0.0017068]
[1731361415714,0.10861375,87898.0,87897.0,0.0017068]
[1731361416575,0.09184452,87898.0,87897.0,0.0017068]
[1731361416778,0.15091178,87898.0,87897.0,0.0017068]
[1731361417657,0.15091178,87898.0,87886.0,0.1]
[1731361417658,0.0492,87882.0,87842.0,0.005]
[1731361417889,0.02001118,87897.0,87842.0,0.005]
[1731361417890,0.005,87856.0,87855.0,0.17070187]
[1731361418021,0.1301,87859.0,87855.0,0.17070187]
[1731361418022,0.06704754,87858.0,87855.0,0.17070187]
[1731361418248,0.0809,87871.0,87855.0,0.17070187]
[1731361418455,0.005,87863.0,87842.0,0.17070187]
[1731361418665,0.11422305,87850.0,87837.0,0.0017048]
[1731361418890,0.11422305,87841.0,87837.0,0.0017048]
[1731361419283,0.18127059,87841.0,87837.0,0.0017048]
[1731361419406,0.11422305,87841.0,87837.0,0.0017048]
[1731361429109,0.18142845,87841.0,87837.0,0.0017048]
[1731361432280,0.18642845,87841.0,87837.0,0.0017048]
[1731361432506,0.2181813,87841.0,87837.0,0.0017048]
[1731361434513,0.2181813,87841.0,87832.0,0.0017048]
[1731361434728,0.11422305,87833.0,87818.0,0.001706]
[1731361434901,0.11422305,87824.0,87818.0,0.001706]
[1731361435107,0.18218652,87824.0,87818.0,0.001706]
[1731361435313,0.20040517,87824.0,87818.0,0.001706]
[1731361436830,0.1324417,87824.0,87818.0,0.001706]
[1731361437496,0.11422305,87824.0,87818.0,0.001706]
[1731361437714,0.11422305,87824.0,87820.0,0.056086]
[1731361437892,0.11422305,87824.0,87818.0,0.001706]
[1731361437893,0.11422305,87824.0,87818.0,0.05860288]
[1731361438300,0.20245472,87841.0,87823.0,0.05856892]
[1731361438525,0.11422305,87840.0,87823.0,0.05686412]
[1731361438770,0.11422305,87840.0,87822.0,0.0824]
[1731361438771,0.11422305,87840.0,87828.0,0.05690256]
[1731361438980,0.11422305,87840.0,87827.0,0.023]
[1731361439175,0.11422305,87840.0,87828.0,0.05690256]
[1731361439470,0.11422305,87840.0,87822.0,0.0824]
[1731361439471,0.11422305,87840.0,87823.0,0.05663857]
[1731361439612,0.02899249,87839.0,87823.0,0.05663857]
[1731361439826,0.11422305,87838.0,87823.0,0.15663857]
[1731361440047,0.10803303,87838.0,87823.0,0.15663857]
[1731361440664,0.0008543,87847.0,87837.0,0.19458445]
[1731361440914,0.17070187,87841.0,87838.0,0.05682717]
[1731361441120,0.11422305,87846.0,87840.0,0.25116714]
[1731361441295,0.0008543,87847.0,87840.0,0.25116714]
[1731361441492,0.17070187,87846.0,87840.0,0.25116714]
[1731361441692,0.18785749,87846.0,87840.0,0.25116714]
[1731361442118,0.0008543,87847.0,87840.0,0.25116714]
[1731361442318,0.0008543,87847.0,87819.0,0.005]
[1731361442321,0.0008543,87847.0,87815.0,0.27406026]
[1731361442322,0.002,87843.0,87815.0,0.27406026]
[1731361442562,0.002,87834.0,87819.0,0.05686156]
[1731361442789,0.001,87830.0,87822.0,0.023]
[1731361442985,0.001,87824.0,87823.0,0.1]
[1731361443409,0.001,87824.0,87823.0,0.15658687]
[1731361443872,0.001,87841.0,87833.0,0.05624592]
[1731361444099,0.17070187,87834.0,87824.0,0.15634136]
[1731361444255,0.17070187,87843.0,87827.0,0.07908089]
[1731361444460,0.17070187,87843.0,87842.0,0.27404203]
[1731361445029,0.16681534,87843.0,87842.0,0.21758445]
[1731361445264,0.16681534,87843.0,87842.0,0.27404203]
[1731361445482,0.16681534,87843.0,87842.0,0.07945758]
[1731361446122,0.01776696,87843.0,87842.0,0.07945758]
[1731361446320,0.01,87849.0,87842.0,0.07945758]
[1731361447159,0.005,87849.0,87842.0,0.07945758]
[1731361447364,0.01,87849.0,87842.0,0.07945758]
[1731361447999,0.01,87849.0,87825.0,0.11422305]
[1731361448000,0.005,87842.0,87834.0,0.023]
[1731361448225,0.005,87832.0,87824.0,0.05634136]
[1731361448431,0.28992492,87841.0,87824.0,0.05634136]
[1731361448432,0.005,87831.0,87824.0,0.05634136]
[1731361448643,0.01,87831.0,87824.0,0.05634136]
[1731361449316,0.005,87829.0,87824.0,0.05634136]
[1731361449528,0.005,87825.0,87824.0,0.05634136]
[1731361449743,0.005,87826.0,87824.0,0.05634136]
[1731361450161,0.005,87826.0,87823.0,0.05744127]
[1731361450392,0.03399249,87826.0,87823.0,0.05744127]
[1731361450623,0.01,87824.0,87823.0,0.05744127]
[1731361450819,0.12422305,87824.0,87823.0,0.0008544]
[1731361451248,0.12422305,87824.0,87789.0,0.0475]
[1731361451249,0.005,87813.0,87790.0,0.05663046]
[1731361451550,0.005,87811.0,87791.0,0.17070187]
[1731361451734,0.005,87811.0,87790.0,0.05663046]
[1731361451735,0.01242231,87810.0,87790.0,0.05663046]
[1731361451937,0.01242231,87810.0,87789.0,0.04078801]
[1731361451938,0.17070187,87801.0,87789.0,0.04078801]
[1731361452173,0.005,87802.0,87789.0,0.04078801]
[1731361452357,0.005,87799.0,87789.0,0.04078801]
[1731361452990,0.17070187,87791.0,87789.0,0.04078801]
[1731361453235,0.17070187,87791.0,87777.0,0.03069165]
[1731361453236,0.03349249,87791.0,87777.0,0.03069165]
[1731361453455,0.005,87791.0,87777.0,0.03069165]
[1731361453660,0.005,87786.0,87777.0,0.03069165]
[1731361453861,0.005,87786.0,87763.0,0.00022621]
[1731361453862,0.005,87786.0,87764.0,0.13906158]
[1731361454466,0.17070187,87781.0,87764.0,0.13906158]
[1731361454663,0.17070187,87770.0,87754.0,0.05691794]
[1731361454866,0.005,87772.0,87754.0,0.05691794]
[1731361455216,0.16781364,87769.0,87754.0,0.05691794]
[1731361455406,0.11422305,87768.0,87754.0,0.05691794]
[1731361455560,0.16781364,87769.0,87754.0,0.05691794]
[1731361455969,0.17070187,87757.0,87754.0,0.05691794]
[1731361456169,0.16781364,87769.0,87754.0,0.05691794]
[1731361456376,0.17070187,87760.0,87754.0,0.15691794]
[1731361456723,0.16781364,87769.0,87754.0,0.15691794]
[1731361457344,0.15403088,87769.0,87756.0,0.05620071]
[1731361457552,0.15403088,87769.0,87757.0,0.023]
[1731361457779,0.15403088,87769.0,87756.0,0.05620071]
[1731361458003,0.137726,87781.0,87760.0,0.023]
[1731361458210,0.137726,87781.0,87763.0,0.05672363]
[1731361458418,0.137726,87781.0,87756.0,0.02676551]
[1731361458419,0.17070187,87780.0,87768.0,0.05693532]
[1731361458621,0.17070187,87780.0,87770.0,0.15651891]
[1731361458824,0.16464384,87780.0,87772.0,0.05661627]
[1731361459029,0.16464384,87780.0,87774.0,0.0562058]
[1731361459321,0.17070187,87790.0,87778.0,0.0562999]
[1731361459529,0.17070187,87790.0,87779.0,0.123]
[1731361459743,0.17070187,87790.0,87782.0,0.0563813]
[1731361459958,0.17070187,87789.0,87785.0,0.023]
[1731361460175,0.17070187,87789.0,87786.0,0.05601662]
[1731361460390,0.0757,87819.0,87788.0,0.023]
[1731361460602,0.17070187,87791.0,87790.0,0.05663046]
[1731361460812,0.1627787,87800.0,87792.0,0.05685918]
[1731361461026,0.15971702,87810.0,87797.0,0.023]
[1731361461245,0.17070187,87799.0,87798.0,0.17921286]
[1731361461468,0.15971702,87810.0,87799.0,0.123]
[1731361461694,0.15971702,87810.0,87792.0,0.005]
[1731361461695,0.16505604,87821.0,87805.0,0.023]
[1731361462140,0.16505604,87821.0,87809.0,0.05657099]
[1731361462354,0.16505604,87821.0,87810.0,0.023]
[1731361462571,0.17070187,87812.0,87808.0,0.05682077]
[1731361462781,0.27927909,87821.0,87810.0,0.05683723]
[1731361463012,0.11422305,87820.0,87808.0,0.05682077]
[1731361463223,0.11422305,87820.0,87793.0,0.05613652]
[1731361463434,0.11422305,87820.0,87796.0,0.0612603]
[1731361463819,0.11422305,87820.0,87797.0,0.023]
[1731361464024,0.17070187,87812.0,87797.0,0.023]
[1731361464267,0.13129324,87811.0,87800.0,0.05601482]
[1731361464478,0.11422305,87811.0,87800.0,0.05601482]
[1731361464682,0.17070187,87810.0,87800.0,0.05601482]
[1731361464893,0.2631413,87810.0,87800.0,0.05601482]
[1731361465105,0.24839077,87810.0,87800.0,0.05601482]
[1731361465340,0.15278361,87821.0,87801.0,0.023]
[1731361465557,0.17070187,87811.0,87802.0,0.05660716]
[1731361465766,0.11422305,87810.0,87802.0,0.05660716]
[1731361465998,0.17070187,87807.0,87802.0,0.05660716]
[1731361466211,0.17070187,87807.0,87778.0,0.005]
[1731361466212,0.11422305,87806.0,87778.0,0.0562999]
[1731361466435,0.11422305,87806.0,87777.0,0.005]
[1731361466436,0.03611249,87805.0,87777.0,0.005]
[1731361466663,0.11422305,87804.0,87778.0,0.0562999]
[1731361466939,0.17070187,87798.0,87778.0,0.0562999]
[1731361467370,0.17070187,87807.0,87786.0,0.07901662]
[1731361467587,0.17070187,87797.0,87786.0,0.07901662]
[1731361468253,0.17070187,87797.0,87787.0,0.05633024]
[1731361468469,0.17070187,87797.0,87788.0,0.05671892]
[1731361468895,0.17070187,87807.0,87788.0,0.05671892]
[1731361469110,0.11422305,87806.0,87790.0,0.05663046]
[1731361469337,0.17070187,87798.0,87791.0,0.023]
[1731361469551,0.11422305,87806.0,87796.0,0.0562603]
[1731361469764,0.02849249,87805.0,87795.0,0.15663155]
[1731361470830,0.02849249,87805.0,87794.0,0.05694266]
[1731361471040,0.11422305,87804.0,87795.0,0.05663155]
[1731361471256,0.03134174,87803.0,87795.0,0.05663155]
[1731361471451,0.14556479,87803.0,87795.0,0.05663155]
[1731361472241,0.14556479,87803.0,87782.0,0.0563813]
[1731361472439,0.14556479,87803.0,87785.0,0.023]
[1731361472644,0.14556479,87803.0,87788.0,0.05671892]
[1731361472849,0.17070187,87798.0,87791.0,0.023]
[1731361473027,0.17070187,87798.0,87791.0,0.123]
[1731361473251,0.17070187,87807.0,87791.0,0.123]
[1731361473451,0.11422305,87806.0,87794.0,0.05694266]
[1731361473649,0.11422305,87806.0,87793.0,0.05613652]
[1731361473855,0.11422305,87806.0,87795.0,0.05663155]
[1731361474080,0.005,87802.0,87781.0,0.05644977]
[1731361474286,0.17070187,87797.0,87783.0,0.0565021]
[1731361474558,0.17070187,87797.0,87780.0,0.023]
[1731361474559,0.1671977,87811.0,87785.0,0.05657546]
[1731361474733,0.17070187,87802.0,87787.0,0.05676071]
[1731361474932,0.17070187,87802.0,87789.0,0.05607534]
[1731361475155,0.17070187,87802.0,87790.0,0.11422305]